fUST/lending_fUST_20260605
["ID","MTS","AMOUNT","RATE_DAILY","PERIOD"]
[424125711,1780605049000,-371.36,0.00018327,2]
[424125710,1780605049000,-500.0,0.00018327,2]
[424125699,1780605049000,-501.55499102,0.00018326,2]
[424125707,1780605049000,-500.0,0.00018327,2]
[424125716,1780605049000,-500.0,0.00018327,2]
[424125724,1780605049000,-500.0,0.00018366,2]
[424125718,1780605049000,-500.0,0.00018327,2]
[424125713,1780605049000,-500.0,0.00018327,2]
[424125722,1780605049000,-178.371,0.00018356,2]
[424125726,1780605049000,-740.42,0.00018366,2]
[424125728,1780605049000,-500.0,0.00018366,2]
[424125746,1780605049000,-500.0,0.00018499,2]
[424125729,1780605049000,-500.0,0.00018366,2]
[424125733,1780605049000,-500.0,0.00018499,2]
[424125731,1780605049000,-500.0,0.00018499,2]
[424125742,1780605049000,-544.93,0.00018499,2]
[424125735,1780605049000,-239.56,0.00018499,2]
[424125737,1780605049000,-500.0,0.00018499,2]
[424125744,1780605049000,-500.0,0.00018499,2]
[424125706,1780605049000,-500.0,0.00018327,2]
[424125720,1780605049000,-500.0,0.00018327,2]
[424125695,1780605049000,-729.8,0.00018326,2]
[424125674,1780605049000,-500.0,0.00018326,2]
[424125693,1780605049000,-500.0,0.00018326,2]
[424125741,1780605049000,-745.17,0.00018499,2]
[424125634,1780605049000,-500.0,0.00018326,2]
[424125630,1780605049000,-500.0,0.00018326,2]
[424125632,1780605049000,-500.0,0.00018326,2]
[424125638,1780605049000,-500.0,0.00018326,2]
[424125636,1780605049000,-500.0,0.00018326,2]
[424125640,1780605049000,-500.0,0.00018326,2]
[424125642,1780605049000,-500.0,0.00018326,2]
[424125644,1780605049000,-500.0,0.00018326,2]
[424125655,1780605049000,-500.0,0.00018326,2]
[424125647,1780605049000,-500.0,0.00018326,2]
[424125651,1780605049000,-500.0,0.00018326,2]
[424125653,1780605049000,-500.0,0.00018326,2]
[424125649,1780605049000,-500.0,0.00018326,2]
[424125659,1780605049000,-503.17617515,0.00018326,2]
[424125661,1780605049000,-7736.84,0.00018326,2]
[424125676,1780605049000,-500.0,0.00018326,2]
[424125663,1780605049000,-500.0,0.00018326,2]
[424125665,1780605049000,-500.0,0.00018326,2]
[424125668,1780605049000,-500.0,0.00018326,2]
[424125670,1780605049000,-500.0,0.00018326,2]
[424125680,1780605049000,-500.0,0.00018326,2]
[424125672,1780605049000,-500.0,0.00018326,2]
[424125678,1780605049000,-500.0,0.00018326,2]
[424125685,1780605049000,-500.0,0.00018326,2]
[424125682,1780605049000,-500.0,0.00018326,2]
[424125687,1780605049000,-500.0,0.00018326,2]
[424125689,1780605049000,-500.0,0.00018326,2]
[424125691,1780605049000,-500.0,0.00018326,2]
[424125701,1780605049000,-500.0,0.00018327,2]
[424125739,1780605049000,-500.0,0.00018499,2]
[424125657,1780605049000,-500.0,0.00018326,2]
[424125750,1780605049000,-623.55,0.00018499,2]
[424125819,1780605049000,-500.0,0.00018599,2]
[424125824,1780605049000,-500.0,0.000186,2]
[424125822,1780605049000,-500.0,0.00018599,2]
[424125826,1780605049000,-500.0,0.000186,2]
[424125832,1780605049000,-500.0,0.000186,2]
[424125828,1780605049000,-500.0,0.000186,2]
[424125830,1780605049000,-500.0,0.000186,2]
[424125834,1780605049000,-500.0,0.000186,2]
[424125838,1780605049000,-500.0,0.000186,2]
[424125840,1780605049000,-500.0,0.000186,2]
[424125842,1780605049000,-500.0,0.000186,2]
[424125844,1780605049000,-500.0,0.000186,2]
[424125836,1780605049000,-500.0,0.000186,2]
[424125849,1780605049000,-163.35067359,0.000186,2]
[424125846,1780605049000,-500.0,0.000186,2]
[424125869,1780605049000,-500.0,0.000186,2]
[424125851,1780605049000,-500.0,0.000186,2]
[424125852,1780605049000,-500.0,0.000186,2]
[424125857,1780605049000,-500.0,0.000186,2]
[424125859,1780605049000,-500.0,0.000186,2]
[424125855,1780605049000,-500.0,0.000186,2]
[424125861,1780605049000,-500.0,0.000186,2]
[424125865,1780605049000,-500.0,0.000186,2]
[424125863,1780605049000,-500.0,0.000186,2]
[424125867,1780605049000,-500.0,0.000186,2]
[424125873,1780605049000,-500.0,0.000186,2]
[424125871,1780605049000,-500.0,0.000186,2]
[424125876,1780605049000,-500.0,0.000186,2]
[424125748,1780605049000,-500.0,0.00018499,2]
[424125821,1780605049000,-500.0,0.00018599,2]
[424125817,1780605049000,-500.0,0.00018599,2]
[424125875,1780605049000,-500.0,0.000186,2]
[424125813,1780605049000,-500.0,0.00018549,2]
[424125752,1780605049000,-500.0,0.00018499,2]
[424125756,1780605049000,-790.67,0.00018499,2]
[424125760,1780605049000,-500.0,0.000185,2]
[424125758,1780605049000,-500.0,0.000185,2]
[424125754,1780605049000,-556.4,0.00018499,2]
[424125762,1780605049000,-500.0,0.000185,2]
[424125775,1780605049000,-500.0,0.000185,2]
[424125777,1780605049000,-500.0,0.000185,2]
[424125815,1780605049000,-500.0,0.00018599,2]
[424125765,1780605049000,-500.0,0.000185,2]
[424125782,1780605049000,-500.0,0.000185,2]
[424125779,1780605049000,-500.0,0.000185,2]
[424125769,1780605049000,-500.0,0.000185,2]
[424125767,1780605049000,-500.0,0.000185,2]
[424125780,1780605049000,-500.0,0.000185,2]
[424125763,1780605049000,-151.0,0.000185,2]
[424125784,1780605049000,-500.0,0.000185,2]
[424125811,1780605049000,-162.380719,0.00018549,2]
[424125786,1780605049000,-500.0,0.000185,2]
[424125809,1780605049000,-500.0,0.000185,2]
[424125807,1780605049000,-522.23875848,0.000185,2]
[424125805,1780605049000,-500.0,0.000185,2]
[424125801,1780605049000,-500.0,0.000185,2]
[424125803,1780605049000,-500.0,0.000185,2]
[424125796,1780605049000,-500.0,0.000185,2]
[424125799,1780605049000,-500.0,0.000185,2]
[424125794,1780605049000,-500.0,0.000185,2]
[424125790,1780605049000,-500.0,0.000185,2]
[424125798,1780605049000,-500.0,0.000185,2]
[424125788,1780605049000,-500.0,0.000185,2]
[424125792,1780605049000,-500.0,0.000185,2]
[424125948,1780605050000,-623.55,0.00018773,2]
[424125963,1780605050000,-500.0,0.00018774,2]
[424125961,1780605050000,-500.0,0.00018774,2]
[424125951,1780605050000,-556.4,0.00018773,2]
[424125944,1780605050000,-500.0,0.00018773,2]
[424125942,1780605050000,-544.93,0.00018773,2]
[424125955,1780605050000,-500.0,0.00018774,2]
[424125953,1780605050000,-790.67,0.00018773,2]
[424125950,1780605050000,-500.0,0.00018773,2]
[424125959,1780605050000,-500.0,0.00018774,2]
[424125946,1780605050000,-500.0,0.00018773,2]
[424125957,1780605050000,-574.45,0.00018774,2]
[424125965,1780605050000,-500.0,0.00018774,2]
[424125992,1780605050000,-500.0,0.00018873,2]
[424125967,1780605050000,-500.0,0.00018774,2]
[424125972,1780605050000,-500.0,0.00018774,2]
[424125978,1780605050000,-500.0,0.00018774,2]
[424125974,1780605050000,-500.0,0.00018774,2]
[424125970,1780605050000,-500.0,0.00018774,2]
[424125976,1780605050000,-500.0,0.00018774,2]
[424125981,1780605050000,-500.0,0.00018774,2]
[424125985,1780605050000,-626.164977,0.00018835,2]
[424125983,1780605050000,-191.62,0.00018805,2]
[424125980,1780605050000,-500.0,0.00018774,2]
[424125989,1780605050000,-501.83,0.00018873,2]
[424125987,1780605050000,-500.0,0.00018873,2]
[424125991,1780605050000,-587.51,0.00018873,2]
[424125936,1780605050000,-500.0,0.00018773,2]
[424125968,1780605050000,-500.0,0.00018774,2]
[424125939,1780605050000,-745.17,0.00018773,2]
[424125907,1780605050000,-500.0,0.00018601,2]
[424125934,1780605050000,-500.0,0.00018773,2]
[424125994,1780605050000,-500.0,0.00018874,2]
[424125880,1780605050000,-500.0,0.000186,2]
[424125878,1780605050000,-7736.84,0.000186,2]
[424125886,1780605050000,-500.0,0.000186,2]
[424125888,1780605050000,-500.0,0.000186,2]
[424125882,1780605050000,-500.0,0.000186,2]
[424125884,1780605050000,-500.0,0.000186,2]
[424125890,1780605050000,-500.0,0.000186,2]
[424125900,1780605050000,-500.0,0.000186,2]
[424125896,1780605050000,-500.0,0.000186,2]
[424125902,1780605050000,-500.0,0.00018601,2]
[424125892,1780605050000,-500.0,0.000186,2]
[424125898,1780605050000,-729.8,0.000186,2]
[424125894,1780605050000,-445.84,0.000186,2]
[424125905,1780605050000,-500.0,0.00018601,2]
[424125904,1780605050000,-500.0,0.00018601,2]
[424125909,1780605050000,-500.0,0.00018601,2]
[424125911,1780605050000,-500.0,0.00018601,2]
[424125913,1780605050000,-500.0,0.00018601,2]
[424125915,1780605050000,-500.0,0.00018601,2]
[424125918,1780605050000,-184.75,0.00018614,2]
[424125920,1780605050000,-1586.8,0.0001863,2]
[424125922,1780605050000,-500.0,0.0001864,2]
[424125917,1780605050000,-500.0,0.00018601,2]
[424125924,1780605050000,-740.42,0.0001864,2]
[424125926,1780605050000,-1055.40795387,0.0001864,2]
[424125932,1780605050000,-151.0,0.000187,2]
[424125930,1780605050000,-1643.20049284,0.00018663,2]
[424125928,1780605050000,-931.53024974,0.00018663,2]
[424125937,1780605050000,-500.0,0.00018773,2]
[424126005,1780605050000,-500.0,0.00018874,2]
[424126007,1780605050000,-500.0,0.00018874,2]
[424126094,1780605050000,-419.86768372,0.00019048,2]
[424126070,1780605050000,-500.0,0.00019047,2]
[424126072,1780605050000,-500.0,0.00019047,2]
[424126074,1780605050000,-500.0,0.00019047,2]
[424126076,1780605050000,-745.17,0.00019047,2]
[424126082,1780605050000,-500.0,0.00019047,2]
[424126090,1780605050000,-790.67,0.00019047,2]
[424126092,1780605050000,-500.0,0.00019048,2]
[424126084,1780605050000,-623.55,0.00019047,2]
[424126088,1780605050000,-556.4,0.00019047,2]
[424126086,1780605050000,-500.0,0.00019047,2]
[424126107,1780605050000,-287.99,0.00019048,2]
[424126105,1780605050000,-500.0,0.00019048,2]
[424126096,1780605050000,-512.43,0.00019048,2]
[424126098,1780605050000,-500.0,0.00019048,2]
[424126109,1780605050000,-500.0,0.00019097,2]
[424126103,1780605050000,-500.0,0.00019048,2]
[424126101,1780605050000,-500.0,0.00019048,2]
[424126111,1780605050000,-151.0,0.000191,2]
[424126099,1780605050000,-500.0,0.00019048,2]
[424126115,1780605050000,-2008.1423186,0.00019123,2]
[424126113,1780605050000,-169.6402115,0.00019123,2]
[424126117,1780605050000,-45099.7495352,0.00019123,2]
[424126121,1780605050000,-151.0,0.00019123,2]
[424126123,1780605050000,-252.030187,0.00019123,2]
[424126129,1780605050000,-500.0,0.00019148,2]
[424126125,1780605050000,-500.0,0.00019147,2]
[424126127,1780605050000,-500.0,0.00019147,2]
[424126004,1780605050000,-500.0,0.00018874,2]
[424126119,1780605050000,-151.0,0.00019123,2]
[424126078,1780605050000,-544.93,0.00019047,2]
[424126068,1780605050000,-824.0,0.00019004,2]
[424126080,1780605050000,-500.0,0.00019047,2]
[424126066,1780605050000,-824.0,0.00019004,2]
[424126009,1780605050000,-500.0,0.00018874,2]
[424126011,1780605050000,-500.0,0.00018874,2]
[424125996,1780605050000,-500.0,0.00018874,2]
[424126002,1780605050000,-500.0,0.00018874,2]
[424125998,1780605050000,-500.0,0.00018874,2]
[424126013,1780605050000,-500.0,0.00018874,2]
[424126015,1780605050000,-500.0,0.00018874,2]
[424126000,1780605050000,-300.16191501,0.00018874,2]
[424126017,1780605050000,-7736.84,0.00018874,2]
[424126019,1780605050000,-500.0,0.00018874,2]
[424126064,1780605050000,-720.0,0.00018929,2]
[424126023,1780605050000,-500.0,0.00018874,2]
[424126029,1780605050000,-537.84,0.00018874,2]
[424126031,1780605050000,-500.0,0.00018874,2]
[424126033,1780605050000,-174.463015,0.00018874,2]
[424126021,1780605050000,-500.0,0.00018874,2]
[424126037,1780605050000,-174.463015,0.00018874,2]
[424126062,1780605050000,-740.42,0.00018913,2]
[424126035,1780605050000,-174.463015,0.00018874,2]
[424126056,1780605050000,-151.0,0.000189,2]
[424126060,1780605050000,-500.0,0.00018913,2]
[424126052,1780605050000,-454.36,0.00018875,2]
[424126050,1780605050000,-500.0,0.00018875,2]
[424126058,1780605050000,-1586.8,0.00018904,2]
[424126048,1780605050000,-500.0,0.00018875,2]
[424126046,1780605050000,-500.0,0.00018874,2]
[424126044,1780605050000,-729.8,0.00018874,2]
[424126042,1780605050000,-500.0,0.00018874,2]
[424126040,1780605050000,-174.463015,0.00018874,2]
[424126054,1780605050000,-500.0,0.00018875,2]
[424126208,1780605051000,-151.0,0.00019178,2]
[424126204,1780605051000,-151.0,0.00019178,2]
[424126196,1780605051000,-756.541922,0.00019178,2]
[424126221,1780605051000,-264.849295,0.00019178,2]
[424126219,1780605051000,-264.849295,0.00019178,2]
[424126214,1780605051000,-151.0,0.00019178,2]
[424126216,1780605051000,-202.47,0.00019178,2]
[424126202,1780605051000,-756.541922,0.00019178,2]
[424126200,1780605051000,-756.541922,0.00019178,2]
[424126198,1780605051000,-756.541922,0.00019178,2]
[424126206,1780605051000,-151.0,0.00019178,2]
[424126217,1780605051000,-264.849295,0.00019178,2]
[424126210,1780605051000,-151.0,0.00019178,2]
[424126244,1780605051000,-500.0,0.00019181,2]
[424126225,1780605051000,-264.849295,0.00019178,2]
[424126223,1780605051000,-264.849295,0.00019178,2]
[424126229,1780605051000,-264.849295,0.00019178,2]
[424126227,1780605051000,-264.849295,0.00019178,2]
[424126231,1780605051000,-264.849295,0.00019178,2]
[424126237,1780605051000,-500.0,0.00019181,2]
[424126233,1780605051000,-1586.8,0.00019178,2]
[424126242,1780605051000,-500.0,0.00019181,2]
[424126238,1780605051000,-1154.48,0.00019181,2]
[424126235,1780605051000,-501.01109865,0.00019181,2]
[424126240,1780605051000,-500.0,0.00019181,2]
[424126248,1780605051000,-740.42,0.00019187,2]
[424126246,1780605051000,-500.0,0.00019187,2]
[424126194,1780605051000,-3187.017102,0.00019178,2]
[424126212,1780605051000,-151.0,0.00019178,2]
[424126188,1780605051000,-3187.017102,0.00019178,2]
[424126133,1780605051000,-500.0,0.00019148,2]
[424126185,1780605051000,-151.0,0.00019178,2]
[424126131,1780605051000,-500.0,0.00019148,2]
[424126135,1780605051000,-500.0,0.00019148,2]
[424126137,1780605051000,-500.0,0.00019148,2]
[424126139,1780605051000,-500.0,0.00019148,2]
[424126141,1780605051000,-7736.84,0.00019148,2]
[424126143,1780605051000,-500.0,0.00019148,2]
[424126144,1780605051000,-500.0,0.00019148,2]
[424126146,1780605051000,-500.0,0.00019148,2]
[424126148,1780605051000,-500.0,0.00019148,2]
[424126150,1780605051000,-500.0,0.00019148,2]
[424126152,1780605051000,-729.8,0.00019148,2]
[424126154,1780605051000,-500.0,0.00019148,2]
[424126156,1780605051000,-500.0,0.00019149,2]
[424126158,1780605051000,-500.0,0.00019149,2]
[424126160,1780605051000,-188.94,0.00019149,2]
[424126165,1780605051000,-1288.7021,0.00019178,2]
[424126162,1780605051000,-300.0,0.00019178,2]
[424126164,1780605051000,-300.0,0.00019178,2]
[424126166,1780605051000,-329.1,0.00019178,2]
[424126168,1780605051000,-151.0,0.00019178,2]
[424126178,1780605051000,-3187.017102,0.00019178,2]
[424126180,1780605051000,-151.0,0.00019178,2]
[424126174,1780605051000,-151.0,0.00019178,2]
[424126169,1780605051000,-194.840786,0.00019178,2]
[424126182,1780605051000,-224.207156,0.00019178,2]
[424126171,1780605051000,-151.0,0.00019178,2]
[424126176,1780605051000,-224.207156,0.00019178,2]
[424126192,1780605051000,-3187.017102,0.00019178,2]
[424126190,1780605051000,-224.207156,0.00019178,2]
[424126187,1780605051000,-224.207156,0.00019178,2]
[424126250,1780605051000,-181.49348814,0.00019283,2]
[424126316,1780605051000,-500.0,0.00019382,2]
[424126254,1780605051000,-151.0,0.00019283,2]
[424126340,1780605051000,-224.474401,0.00019396,2]
[424126343,1780605051000,-151.0,0.00019396,2]
[424126330,1780605051000,-224.474401,0.00019396,2]
[424126336,1780605051000,-224.474401,0.00019396,2]
[424126341,1780605051000,-151.0,0.00019396,2]
[424126332,1780605051000,-151.0,0.00019396,2]
[424126328,1780605051000,-151.0,0.00019396,2]
[424126326,1780605051000,-151.0,0.00019396,2]
[424126345,1780605051000,-151.0,0.00019396,2]
[424126334,1780605051000,-151.0,0.00019396,2]
[424126348,1780605051000,-151.0,0.00019396,2]
[424126349,1780605051000,-151.0,0.00019396,2]
[424126351,1780605051000,-151.0,0.00019396,2]
[424126353,1780605051000,-151.0,0.00019396,2]
[424126359,1780605051000,-151.0,0.000194,2]
[424126357,1780605051000,-151.0,0.000194,2]
[424126355,1780605051000,-151.0,0.000194,2]
[424126363,1780605051000,-500.0,0.00019421,2]
[424126365,1780605051000,-500.0,0.00019421,2]
[424126369,1780605051000,-500.0,0.00019422,2]
[424126361,1780605051000,-8964.33228351,0.00019415,2]
[424126367,1780605051000,-500.0,0.00019422,2]
[424126373,1780605051000,-500.0,0.00019422,2]
[424126377,1780605051000,-7736.84,0.00019422,2]
[424126375,1780605051000,-500.0,0.00019422,2]
[424126381,1780605051000,-500.0,0.00019422,2]
[424126379,1780605051000,-500.0,0.00019422,2]
[424126383,1780605051000,-500.0,0.00019422,2]
[424126252,1780605051000,-151.0,0.00019283,2]
[424126338,1780605051000,-224.474401,0.00019396,2]
[424126324,1780605051000,-181.794589,0.00019396,2]
[424126371,1780605051000,-500.0,0.00019422,2]
[424126304,1780605051000,-500.0,0.00019322,2]
[424126262,1780605051000,-151.0,0.00019283,2]
[424126320,1780605051000,-151.0,0.00019396,2]
[424126270,1780605051000,-151.0,0.00019283,2]
[424126260,1780605051000,-151.0,0.00019283,2]
[424126268,1780605051000,-151.0,0.00019283,2]
[424126272,1780605051000,-151.84870158,0.00019283,2]
[424126266,1780605051000,-151.0,0.00019283,2]
[424126276,1780605051000,-151.0,0.000193,2]
[424126278,1780605051000,-151.0,0.000193,2]
[424126280,1780605051000,-500.0,0.00019321,2]
[424126294,1780605051000,-623.55,0.00019321,2]
[424126274,1780605051000,-151.0,0.000193,2]
[424126282,1780605051000,-500.0,0.00019321,2]
[424126286,1780605051000,-745.17,0.00019321,2]
[424126264,1780605051000,-151.0,0.00019283,2]
[424126284,1780605051000,-500.0,0.00019321,2]
[424126288,1780605051000,-544.93,0.00019321,2]
[424126302,1780605051000,-500.0,0.00019322,2]
[424126306,1780605051000,-500.0,0.00019322,2]
[424126318,1780605051000,-297.29691602,0.00019384,2]
[424126300,1780605051000,-437.5,0.00019322,2]
[424126312,1780605051000,-824.0,0.0001936,2]
[424126314,1780605051000,-500.0,0.00019382,2]
[424126308,1780605051000,-500.0,0.00019322,2]
[424126298,1780605051000,-556.4,0.00019321,2]
[424126292,1780605051000,-500.0,0.00019321,2]
[424126290,1780605051000,-500.0,0.00019321,2]
[424126322,1780605051000,-151.0,0.00019396,2]
[424126310,1780605051000,-500.0,0.00019322,2]
[424126296,1780605051000,-500.0,0.00019321,2]
[424126445,1780605052000,-207.01097152,0.00019523,2]
[424126455,1780605052000,-186.2016,0.00019537,2]
[424126448,1780605052000,-333.9195117,0.00019523,2]
[424126442,1780605052000,-870.02109669,0.00019523,2]
[424126453,1780605052000,-442.348943,0.00019523,2]
[424126458,1780605052000,-186.2016,0.00019537,2]
[424126466,1780605052000,-151.0,0.00019537,2]
[424126477,1780605052000,-177.71558,0.00019537,2]
[424126483,1780605052000,-231.322169,0.00019537,2]
[424126464,1780605052000,-151.0,0.00019537,2]
[424126475,1780605052000,-177.71558,0.00019537,2]
[424126473,1780605052000,-177.71558,0.00019537,2]
[424126481,1780605052000,-231.322169,0.00019537,2]
[424126479,1780605052000,-231.322169,0.00019537,2]
[424126471,1780605052000,-177.71558,0.00019537,2]
[424126467,1780605052000,-151.0,0.00019537,2]
[424126489,1780605052000,-256.074,0.00019537,2]
[424126485,1780605052000,-231.322169,0.00019537,2]
[424126487,1780605052000,-256.074,0.00019537,2]
[424126450,1780605052000,-245.74941278,0.00019523,2]
[424126491,1780605052000,-256.074,0.00019537,2]
[424126469,1780605052000,-239.181582,0.00019537,2]
[424126457,1780605052000,-186.2016,0.00019537,2]
[424126403,1780605052000,-1586.8,0.00019452,2]
[424126460,1780605052000,-186.2016,0.00019537,2]
[424126495,1780605052000,-151.0,0.00019537,2]
[424126395,1780605052000,-1231.30927952,0.00019425,2]
[424126394,1780605052000,-500.0,0.00019423,2]
[424126388,1780605052000,-729.8,0.00019422,2]
[424126385,1780605052000,-500.0,0.00019422,2]
[424126392,1780605052000,-500.0,0.00019422,2]
[424126386,1780605052000,-500.0,0.00019422,2]
[424126397,1780605052000,-1086.78529137,0.00019448,2]
[424126396,1780605052000,-6112.33276983,0.00019448,2]
[424126399,1780605052000,-1917.06724165,0.00019448,2]
[424126462,1780605052000,-151.0,0.00019537,2]
[424126408,1780605052000,-500.0,0.00019455,2]
[424126417,1780605052000,-500.0,0.00019455,2]
[424126423,1780605052000,-500.0,0.00019461,2]
[424126410,1780605052000,-1154.48,0.00019455,2]
[424126414,1780605052000,-500.0,0.00019455,2]
[424126426,1780605052000,-740.42,0.00019461,2]
[424126437,1780605052000,-489.38686689,0.00019523,2]
[424126429,1780605052000,-151.0,0.000195,2]
[424126439,1780605052000,-292.47204478,0.00019523,2]
[424126431,1780605052000,-151.03,0.000195,2]
[424126434,1780605052000,-271.88159271,0.00019523,2]
[424126420,1780605052000,-500.0,0.00019455,2]
[424126506,1780605052000,-151.0,0.00019537,2]
[424126516,1780605052000,-151.0,0.00019537,2]
[424126493,1780605052000,-256.074,0.00019537,2]
[424126544,1780605052000,-323.881619,0.00019537,2]
[424126550,1780605052000,-151.0,0.00019537,2]
[424126548,1780605052000,-151.0,0.00019537,2]
[424126561,1780605052000,-264.849295,0.00019537,2]
[424126542,1780605052000,-151.0,0.00019537,2]
[424126546,1780605052000,-151.0,0.00019537,2]
[424126563,1780605052000,-264.849295,0.00019537,2]
[424126565,1780605052000,-264.849295,0.00019537,2]
[424126567,1780605052000,-264.849295,0.00019537,2]
[424126578,1780605052000,-224.474401,0.00019548,2]
[424126559,1780605052000,-174.463015,0.00019537,2]
[424126580,1780605052000,-224.474401,0.00019548,2]
[424126582,1780605052000,-224.474401,0.00019548,2]
[424126576,1780605052000,-151.0,0.00019548,2]
[424126572,1780605052000,-224.474401,0.00019548,2]
[424126574,1780605052000,-151.0,0.00019548,2]
[424126502,1780605052000,-151.0,0.00019537,2]
[424126571,1780605052000,-151.0,0.00019548,2]
[424126586,1780605052000,-151.0,0.00019548,2]
[424126588,1780605052000,-151.0,0.00019548,2]
[424126590,1780605052000,-151.0,0.00019548,2]
[424126592,1780605052000,-151.0,0.00019548,2]
[424126569,1780605052000,-151.0,0.00019548,2]
[424126556,1780605052000,-174.463015,0.00019537,2]
[424126584,1780605052000,-151.0,0.00019548,2]
[424126557,1780605052000,-174.463015,0.00019537,2]
[424126554,1780605052000,-174.463015,0.00019537,2]
[424126505,1780605052000,-151.0,0.00019537,2]
[424126496,1780605052000,-151.0,0.00019537,2]
[424126498,1780605052000,-151.0,0.00019537,2]
[424126510,1780605052000,-151.0,0.00019537,2]
[424126512,1780605052000,-151.0,0.00019537,2]
[424126508,1780605052000,-151.0,0.00019537,2]
[424126514,1780605052000,-151.0,0.00019537,2]
[424126518,1780605052000,-231.544,0.00019537,2]
[424126521,1780605052000,-231.544,0.00019537,2]
[424126525,1780605052000,-231.544,0.00019537,2]
[424126501,1780605052000,-151.0,0.00019537,2]
[424126533,1780605052000,-151.0,0.00019537,2]
[424126519,1780605052000,-231.544,0.00019537,2]
[424126541,1780605052000,-323.881619,0.00019537,2]
[424126537,1780605052000,-323.881619,0.00019537,2]
[424126531,1780605052000,-323.881619,0.00019537,2]
[424126539,1780605052000,-151.0,0.00019537,2]
[424126527,1780605052000,-5895.96888,0.00019537,2]
[424126535,1780605052000,-5895.96888,0.00019537,2]
[424126523,1780605052000,-5895.96888,0.00019537,2]
[424126529,1780605052000,-5895.96888,0.00019537,2]
[424126552,1780605052000,-207.906512,0.00019537,2]
[424126642,1780605053000,-5895.96888,0.00019548,2]
[424126646,1780605053000,-323.881619,0.00019548,2]
[424126628,1780605053000,-151.0,0.00019548,2]
[424126630,1780605053000,-268.929384,0.00019548,2]
[424126627,1780605053000,-151.0,0.00019548,2]
[424126644,1780605053000,-5895.96888,0.00019548,2]
[424126658,1780605053000,-323.881619,0.00019548,2]
[424126660,1780605053000,-151.0,0.00019548,2]
[424126654,1780605053000,-151.0,0.00019548,2]
[424126656,1780605053000,-151.0,0.00019548,2]
[424126652,1780605053000,-323.881619,0.00019548,2]
[424126666,1780605053000,-151.0,0.00019548,2]
[424126594,1780605053000,-151.0,0.00019548,2]
[424126662,1780605053000,-323.881619,0.00019548,2]
[424126623,1780605053000,-151.0,0.00019548,2]
[424126650,1780605053000,-5895.96888,0.00019548,2]
[424126625,1780605053000,-166.018889,0.00019548,2]
[424126619,1780605053000,-945.137985,0.00019548,2]
[424126640,1780605053000,-231.544,0.00019548,2]
[424126605,1780605053000,-151.0,0.00019548,2]
[424126607,1780605053000,-175.664076,0.00019548,2]
[424126609,1780605053000,-175.664076,0.00019548,2]
[424126611,1780605053000,-151.0,0.00019548,2]